[Event "Early-Titled-Tuesday-Blitz-April-23-2024"]
[Site "Chess.com"]
[Date "2024.04.23"]
[Round "8"]
[White "Msb2"]
[Black "LawrenceTrent"]
[Result "1-0"]
[WhiteElo "3052"]
[BlackElo "2714"]
[TimeControl "180+1"]
[EndTime "9:32:00 PDT"]
[Termination "Msb2 won by resignation"]

1. d4 {[%clk 0:03:00.9]} 1... Nf6 {[%clk 0:02:58.8]} 2. c4 {[%clk 0:03:01.1]}
2... g6 {[%clk 0:02:58.8]} 3. Nc3 {[%clk 0:03:01.6]} 3... Bg7 {[%clk 0:02:59.2]}
4. e4 {[%clk 0:03:02]} 4... O-O {[%clk 0:02:59.8]} 5. Nf3 {[%clk 0:03:02.4]}
5... c6 {[%clk 0:03:00.1]} 6. Be2 {[%clk 0:03:02.5]} 6... d5 {[%clk 0:03:00.4]}
7. e5 {[%clk 0:03:03.2]} 7... Ne4 {[%clk 0:03:00.5]} 8. O-O {[%clk 0:03:03.9]}
8... Bf5 {[%clk 0:02:52]} 9. Be3 {[%clk 0:02:44.4]} 9... Nd7 {[%clk 0:02:46.9]}
10. Bd3 {[%clk 0:02:22.6]} 10... Nxc3 {[%clk 0:02:37.2]} 11. bxc3 {[%clk
0:02:23.5]} 11... Bxd3 {[%clk 0:02:38.1]} 12. Qxd3 {[%clk 0:02:24.1]} 12... dxc4
{[%clk 0:02:39]} 13. Qxc4 {[%clk 0:02:25]} 13... Nb6 {[%clk 0:02:39.9]} 14. Qb3
{[%clk 0:02:20.4]} 14... Qd5 {[%clk 0:02:38.2]} 15. Rab1 {[%clk 0:02:19.4]}
15... f6 {[%clk 0:02:33.9]} 16. e6 {[%clk 0:01:57.4]} 16... Rfd8 {[%clk
0:02:28.9]} 17. Rfe1 {[%clk 0:01:57.3]} 17... Qxb3 {[%clk 0:02:05.2]} 18. axb3
{[%clk 0:01:56.6]} 18... Nd5 {[%clk 0:02:00.6]} 19. Bd2 {[%clk 0:01:56.4]} 19...
Nc7 {[%clk 0:02:00.8]} 20. c4 {[%clk 0:01:55.5]} 20... f5 {[%clk 0:01:57.4]} 21.
Bf4 {[%clk 0:01:52.7]} 21... Ne8 {[%clk 0:01:57.5]} 22. Red1 {[%clk 0:01:45.6]}
22... a5 {[%clk 0:01:51.7]} 23. h3 {[%clk 0:01:21.8]} 23... b5 {[%clk
0:01:43.7]} 24. Be5 {[%clk 0:01:11.5]} 24... a4 {[%clk 0:01:40.2]} 25. bxa4
{[%clk 0:01:11.7]} 25... bxc4 {[%clk 0:01:38.5]} 26. Rb7 {[%clk 0:01:07.1]}
26... Bxe5 {[%clk 0:01:29.5]} 27. Nxe5 {[%clk 0:01:08]} 27... Rd6 {[%clk
0:01:08.6]} 28. Rxe7 {[%clk 0:01:07.4]} 28... c3 {[%clk 0:01:08.1]} 29. Rc1
{[%clk 0:01:04.2]} 29... Rxd4 {[%clk 0:01:03.6]} 30. Rxc3 {[%clk 0:01:03.9]}
30... Re4 {[%clk 0:01:01.8]} 31. Nxc6 {[%clk 0:01:02.5]} 31... Ng7 {[%clk
0:01:01.1]} 32. a5 {[%clk 0:00:58.1]} 32... Rxe6 {[%clk 0:01:00.9]} 33. Rxe6
{[%clk 0:00:58.4]} 33... Nxe6 {[%clk 0:01:01.7]} 34. Ra3 {[%clk 0:00:58.8]}
34... Nc5 {[%clk 0:00:56.1]} 35. Nb4 {[%clk 0:00:53.5]} 35... Kf7 {[%clk
0:00:49.1]} 36. a6 {[%clk 0:00:53.3]} 36... Ke6 {[%clk 0:00:44.4]} 37. a7 {[%clk
0:00:53.7]} 37... Kd6 {[%clk 0:00:44.6]} 38. Ra5 {[%clk 0:00:39.4]} 38... Nd7
{[%clk 0:00:34]} 39. Kh2 {[%clk 0:00:29.7]} 39... Ne5 {[%clk 0:00:26.8]} 40. Kg3
{[%clk 0:00:22]} 40... Nc4 {[%clk 0:00:20.1]} 41. Rd5+ {[%clk 0:00:21.1]} 41...
Kc7 {[%clk 0:00:20.1]} 42. Rc5+ {[%clk 0:00:21.4]} 1-0

[Event "Early-Titled-Tuesday-Blitz-April-23-2024"]
[Site "Chess.com"]
[Date "2024.04.23"]
[Round "8"]
[White "lucasran"]
[Black "Jojo_898"]
[Result "0-1"]
[WhiteElo "2592"]
[BlackElo "2448"]
[TimeControl "180+1"]
[EndTime "9:32:00 PDT"]
[Termination "Jojo_898 won by checkmate"]

1. e4 {[%clk 0:02:21.2]} 1... d6 {[%clk 0:02:59.6]} 2. d4 {[%clk 0:02:20.9]}
2... Nf6 {[%clk 0:02:59.7]} 3. Nc3 {[%clk 0:02:20.7]} 3... g6 {[%clk 0:03:00.1]}
4. Nf3 {[%clk 0:02:20.2]} 4... c6 {[%clk 0:03:00.1]} 5. a4 {[%clk 0:02:19.3]}
5... Bg7 {[%clk 0:02:59.9]} 6. Be2 {[%clk 0:02:18.6]} 6... O-O {[%clk 0:03:00]}
7. O-O {[%clk 0:02:15.9]} 7... Nbd7 {[%clk 0:02:58.5]} 8. h3 {[%clk 0:02:15.3]}
8... e5 {[%clk 0:02:58.2]} 9. Be3 {[%clk 0:02:14.6]} 9... Qe7 {[%clk 0:02:54.7]}
10. Re1 {[%clk 0:02:09.7]} 10... Rd8 {[%clk 0:02:30]} 11. Nd2 {[%clk 0:02:04]}
11... Nf8 {[%clk 0:02:21.7]} 12. Nc4 {[%clk 0:02:00.4]} 12... Ne6 {[%clk
0:01:56.3]} 13. d5 {[%clk 0:01:54.2]} 13... Nc7 {[%clk 0:01:47]} 14. a5 {[%clk
0:01:46.4]} 14... cxd5 {[%clk 0:01:33.1]} 15. exd5 {[%clk 0:01:46.2]} 15... Bd7
{[%clk 0:01:23]} 16. b4 {[%clk 0:01:17.3]} 16... Nb5 {[%clk 0:01:07.3]} 17. Nxb5
{[%clk 0:01:12.1]} 17... Bxb5 {[%clk 0:01:06.1]} 18. Na3 {[%clk 0:01:02.3]}
18... Bxe2 {[%clk 0:01:03.5]} 19. Rxe2 {[%clk 0:01:03.2]} 19... Ne4 {[%clk
0:00:59.1]} 20. Qd3 {[%clk 0:00:46.9]} 20... f5 {[%clk 0:00:59]} 21. c4 {[%clk
0:00:40.2]} 21... Qh4 {[%clk 0:00:42.8]} 22. Rc1 {[%clk 0:00:37.3]} 22... Ng5
{[%clk 0:00:39.9]} 23. Bxg5 {[%clk 0:00:35.6]} 23... Qxg5 {[%clk 0:00:40]} 24.
Rd1 {[%clk 0:00:27.3]} 24... e4 {[%clk 0:00:36.6]} 25. Qe3 {[%clk 0:00:24.3]}
25... Qh5 {[%clk 0:00:33.8]} 26. c5 {[%clk 0:00:20]} 26... Bh6 {[%clk
0:00:15.6]} 27. g4 {[%clk 0:00:19.7]} 27... fxg4 {[%clk 0:00:13.8]} 28. Qxe4
{[%clk 0:00:20]} 28... gxh3 {[%clk 0:00:11.6]} 29. Kh1 {[%clk 0:00:19]} 29...
Re8 {[%clk 0:00:09.2]} 30. Qxe8+ {[%clk 0:00:18.2]} 30... Rxe8 {[%clk
0:00:10.1]} 31. Rxe8+ {[%clk 0:00:18.5]} 31... Kf7 {[%clk 0:00:10.8]} 32. Rde1
{[%clk 0:00:05.1]} 32... Qf3+ {[%clk 0:00:10.4]} 33. Kh2 {[%clk 0:00:05.1]}
33... Qg2# {[%clk 0:00:11]} 0-1

[Event "Early-Titled-Tuesday-Blitz-April-23-2024"]
[Site "Chess.com"]
[Date "2024.04.23"]
[Round "8"]
[White "N_I_Chess"]
[Black "mary-sanna"]
[Result "1-0"]
[WhiteElo "2379"]
[BlackElo "2249"]
[TimeControl "180+1"]
[EndTime "9:32:00 PDT"]
[Termination "N_I_Chess won by checkmate"]

1. d4 {[%clk 0:02:53.5]} 1... d5 {[%clk 0:02:59.9]} 2. c4 {[%clk 0:02:53.8]}
2... e6 {[%clk 0:03:00.2]} 3. Nc3 {[%clk 0:02:52.3]} 3... Nf6 {[%clk 0:03:00.2]}
4. cxd5 {[%clk 0:02:52.2]} 4... exd5 {[%clk 0:03:01.1]} 5. Bg5 {[%clk
0:02:50.8]} 5... Be7 {[%clk 0:03:01.1]} 6. Qc2 {[%clk 0:02:49.6]} 6... c6 {[%clk
0:02:58.1]} 7. e3 {[%clk 0:02:49.7]} 7... O-O {[%clk 0:02:57.8]} 8. Bd3 {[%clk
0:02:49.3]} 8... h6 {[%clk 0:02:58.2]} 9. Bh4 {[%clk 0:02:48.9]} 9... Nbd7
{[%clk 0:02:50.9]} 10. Nge2 {[%clk 0:02:40.4]} 10... a5 {[%clk 0:02:44.9]} 11.
O-O {[%clk 0:02:38.7]} 11... Re8 {[%clk 0:02:44.2]} 12. f3 {[%clk 0:02:38.7]}
12... Nf8 {[%clk 0:02:43.4]} 13. Kh1 {[%clk 0:02:37.4]} 13... Ne6 {[%clk
0:02:29.8]} 14. Rad1 {[%clk 0:02:28.3]} 14... Nd7 {[%clk 0:02:10.9]} 15. Bf2
{[%clk 0:02:18.4]} 15... Bg5 {[%clk 0:02:05]} 16. Ng3 {[%clk 0:01:46.2]} 16...
Bh4 {[%clk 0:01:46.3]} 17. Rfe1 {[%clk 0:01:32]} 17... Nef8 {[%clk 0:01:24.5]}
18. e4 {[%clk 0:01:30.7]} 18... dxe4 {[%clk 0:01:18.6]} 19. fxe4 {[%clk
0:01:31.6]} 19... Nf6 {[%clk 0:01:09.3]} 20. h3 {[%clk 0:00:39.4]} 20... Kh8
{[%clk 0:00:22.1]} 21. Bc4 {[%clk 0:00:29.8]} 21... Qc7 {[%clk 0:00:21]} 22. e5
{[%clk 0:00:29]} 22... Ng8 {[%clk 0:00:18.8]} 23. Nce4 {[%clk 0:00:21.7]} 23...
Be6 {[%clk 0:00:17.2]} 24. Nd6 {[%clk 0:00:21.1]} 24... Bxc4 {[%clk 0:00:16.3]}
25. Qxc4 {[%clk 0:00:21.5]} 25... Ne6 {[%clk 0:00:16.2]} 26. Rf1 {[%clk
0:00:18.2]} 26... Ne7 {[%clk 0:00:15.8]} 27. Nxf7+ {[%clk 0:00:16.7]} 27... Kg8
{[%clk 0:00:15.4]} 28. Qxe6 {[%clk 0:00:12.5]} 28... Nd5 {[%clk 0:00:11.8]} 29.
Nxh6+ {[%clk 0:00:09.3]} 29... Kh7 {[%clk 0:00:12.1]} 30. Qf5+ {[%clk 0:00:08]}
30... Kxh6 {[%clk 0:00:12]} 31. Qh5# {[%clk 0:00:03.6]} 1-0

[Event "Early-Titled-Tuesday-Blitz-April-23-2024"]
[Site "Chess.com"]
[Date "2024.04.23"]
[Round "8"]
[White "temiksmozg"]
[Black "Agibileg"]
[Result "1-0"]
[WhiteElo "2683"]
[BlackElo "2802"]
[TimeControl "180+1"]
[EndTime "9:32:01 PDT"]
[Termination "temiksmozg won on time"]

1. e4 {[%clk 0:03:00]} 1... c5 {[%clk 0:02:57]} 2. Nf3 {[%clk 0:02:59.3]} 2...
e6 {[%clk 0:02:56.4]} 3. d4 {[%clk 0:02:59.2]} 3... cxd4 {[%clk 0:02:57.3]} 4.
Nxd4 {[%clk 0:03:00.1]} 4... Nc6 {[%clk 0:02:57]} 5. Bf4 {[%clk 0:03:00.6]} 5...
Nf6 {[%clk 0:02:48]} 6. Nb5 {[%clk 0:03:00.5]} 6... e5 {[%clk 0:02:46.7]} 7. Bg5
{[%clk 0:03:00.3]} 7... d6 {[%clk 0:02:46.9]} 8. N1c3 {[%clk 0:02:59.5]} 8... a6
{[%clk 0:02:47]} 9. Na3 {[%clk 0:02:59.1]} 9... Be7 {[%clk 0:02:44.5]} 10. Bd3
{[%clk 0:02:52.5]} 10... b5 {[%clk 0:02:42.5]} 11. Bxf6 {[%clk 0:02:52]} 11...
Bxf6 {[%clk 0:02:41.8]} 12. Nd5 {[%clk 0:02:52.9]} 12... Bg5 {[%clk 0:02:39.8]}
13. c3 {[%clk 0:02:51.9]} 13... O-O {[%clk 0:02:38.9]} 14. Nc2 {[%clk
0:02:51.8]} 14... Ne7 {[%clk 0:02:26.5]} 15. Nce3 {[%clk 0:02:42.1]} 15... Bxe3
{[%clk 0:02:22.4]} 16. Nxe3 {[%clk 0:02:41.4]} 16... Bb7 {[%clk 0:02:17.5]} 17.
a4 {[%clk 0:02:40.1]} 17... d5 {[%clk 0:02:13.1]} 18. axb5 {[%clk 0:02:38.5]}
18... dxe4 {[%clk 0:02:08.4]} 19. bxa6 {[%clk 0:02:33.9]} 19... exd3 {[%clk
0:02:07.5]} 20. axb7 {[%clk 0:02:33.6]} 20... Rxa1 {[%clk 0:02:08.2]} 21. Qxa1
{[%clk 0:02:33.7]} 21... Qb6 {[%clk 0:02:01.1]} 22. Qa8 {[%clk 0:02:22.8]} 22...
d2+ {[%clk 0:01:47.8]} 23. Kxd2 {[%clk 0:02:12]} 23... Qxb2+ {[%clk 0:01:47.6]}
24. Nc2 {[%clk 0:02:12.5]} 24... Nc6 {[%clk 0:01:39.4]} 25. Ra1 {[%clk
0:02:11.1]} 25... g6 {[%clk 0:01:25.7]} 26. Ra2 {[%clk 0:01:40.5]} 26... Qb1
{[%clk 0:01:23.7]} 27. Qc8 {[%clk 0:01:21.2]} 27... Rd8+ {[%clk 0:01:18.2]} 28.
Ke3 {[%clk 0:01:13.8]} 28... Qc1+ {[%clk 0:01:13.4]} 29. Kf3 {[%clk 0:01:14.2]}
29... Qd1+ {[%clk 0:01:12.5]} 30. Kg3 {[%clk 0:01:11]} 30... h5 {[%clk
0:01:08.8]} 31. Ne3 {[%clk 0:01:06]} 31... Qd6 {[%clk 0:01:04.4]} 32. Ra6 {[%clk
0:00:57.3]} 32... e4+ {[%clk 0:01:01.8]} 33. Kh3 {[%clk 0:00:57.5]} 33... Qd7+
{[%clk 0:00:16.1]} 34. Qxd7 {[%clk 0:00:54]} 34... Rxd7 {[%clk 0:00:17]} 35.
Rxc6 {[%clk 0:00:53.2]} 35... Rxb7 {[%clk 0:00:17.1]} 36. c4 {[%clk 0:00:53.5]}
36... Rb2 {[%clk 0:00:14.7]} 37. Kg3 {[%clk 0:00:53]} 37... Kg7 {[%clk
0:00:14.6]} 38. h4 {[%clk 0:00:52.8]} 38... f5 {[%clk 0:00:12.9]} 39. f3 {[%clk
0:00:50.2]} 39... exf3 {[%clk 0:00:07.3]} 40. Kxf3 {[%clk 0:00:51.1]} 40... Kf7
{[%clk 0:00:03.6]} 41. g3 {[%clk 0:00:51.1]} 41... Rb3 {[%clk 0:00:03.6]} 42.
Rc7+ {[%clk 0:00:50.6]} 42... Ke6 {[%clk 0:00:02.7]} 43. c5 {[%clk 0:00:51.2]}
43... Rd3 {[%clk 0:00:01.9]} 44. c6 {[%clk 0:00:49.7]} 1-0

[Event "Early-Titled-Tuesday-Blitz-April-23-2024"]
[Site "Chess.com"]
[Date "2024.04.23"]
[Round "8"]
[White "AlphaGoosee"]
[Black "ImportedItalianMaple"]
[Result "1-0"]
[WhiteElo "2639"]
[BlackElo "2461"]
[TimeControl "180+1"]
[EndTime "9:32:01 PDT"]
[Termination "AlphaGoosee won on time"]

1. e4 {[%clk 0:03:00.9]} 1... g6 {[%clk 0:03:00.2]} 2. d4 {[%clk 0:03:00.6]}
2... Bg7 {[%clk 0:03:00.7]} 3. Nc3 {[%clk 0:03:01.3]} 3... d5 {[%clk 0:03:00.4]}
4. exd5 {[%clk 0:02:58.9]} 4... Nf6 {[%clk 0:03:00.9]} 5. Nf3 {[%clk 0:02:56.3]}
5... Nxd5 {[%clk 0:03:00.3]} 6. h4 {[%clk 0:02:54.2]} 6... Bg4 {[%clk
0:02:56.3]} 7. Bc4 {[%clk 0:02:50.9]} 7... e6 {[%clk 0:02:50.5]} 8. Bg5 {[%clk
0:02:43.9]} 8... f6 {[%clk 0:02:44.8]} 9. Be3 {[%clk 0:02:38.8]} 9... Nc6 {[%clk
0:02:38.8]} 10. Qe2 {[%clk 0:02:28.8]} 10... O-O {[%clk 0:02:32.5]} 11. Bb3
{[%clk 0:02:19]} 11... Na5 {[%clk 0:02:08.6]} 12. Ba4 {[%clk 0:01:56]} 12... c6
{[%clk 0:02:04.4]} 13. Ne4 {[%clk 0:01:53]} 13... b5 {[%clk 0:02:00.4]} 14. Bb3
{[%clk 0:01:52.1]} 14... Nxb3 {[%clk 0:02:00.4]} 15. axb3 {[%clk 0:01:52.7]}
15... f5 {[%clk 0:01:49.3]} 16. Neg5 {[%clk 0:01:34.4]} 16... f4 {[%clk
0:01:45.1]} 17. Bd2 {[%clk 0:01:34.3]} 17... Qd7 {[%clk 0:01:34.6]} 18. Qe4
{[%clk 0:01:15.9]} 18... Bf5 {[%clk 0:01:30.5]} 19. Qe2 {[%clk 0:01:11.6]} 19...
h6 {[%clk 0:01:26.9]} 20. Ne4 {[%clk 0:01:10.8]} 20... Rae8 {[%clk 0:01:19.7]}
21. Ne5 {[%clk 0:01:05.4]} 21... Qc7 {[%clk 0:01:14.6]} 22. c4 {[%clk
0:00:45.8]} 22... Bxe5 {[%clk 0:01:06.6]} 23. dxe5 {[%clk 0:00:43.6]} 23... Qxe5
{[%clk 0:01:02.9]} 24. f3 {[%clk 0:00:42.3]} 24... Ne3 {[%clk 0:01:01]} 25. Bxe3
{[%clk 0:00:32.8]} 25... fxe3 {[%clk 0:00:59.7]} 26. Qxe3 {[%clk 0:00:29]} 26...
Bxe4 {[%clk 0:00:55.4]} 27. O-O {[%clk 0:00:20.5]} 27... Rf4 {[%clk 0:00:41.5]}
28. g3 {[%clk 0:00:18.4]} 28... Rxh4 {[%clk 0:00:15.9]} 29. Kg2 {[%clk
0:00:07.4]} 29... Qxb2+ {[%clk 0:00:15.6]} 30. Qf2 {[%clk 0:00:06.1]} 30...
Bxf3+ {[%clk 0:00:14.1]} 31. Kxf3 {[%clk 0:00:02.9]} 31... Qxb3+ {[%clk
0:00:13.8]} 32. Kg2 {[%clk 0:00:03.2]} 1-0

[Event "Early-Titled-Tuesday-Blitz-April-23-2024"]
[Site "Chess.com"]
[Date "2024.04.23"]
[Round "8"]
[White "DinaBelenkaya"]
[Black "Silent-Killer100"]
[Result "0-1"]
[WhiteElo "2428"]
[BlackElo "2602"]
[TimeControl "180+1"]
[EndTime "9:32:01 PDT"]
[Termination "Silent-Killer100 won by checkmate"]

1. e4 {[%clk 0:03:00.9]} 1... c5 {[%clk 0:02:59.9]} 2. Nc3 {[%clk 0:02:57.7]}
2... Nc6 {[%clk 0:02:59.2]} 3. Nf3 {[%clk 0:02:57.5]} 3... Nd4 {[%clk
0:02:54.1]} 4. Nxd4 {[%clk 0:02:53]} 4... cxd4 {[%clk 0:02:55]} 5. Ne2 {[%clk
0:02:50.1]} 5... e5 {[%clk 0:02:55.3]} 6. Ng3 {[%clk 0:02:50]} 6... d6 {[%clk
0:02:54.3]} 7. Bc4 {[%clk 0:02:48.3]} 7... g6 {[%clk 0:02:53.7]} 8. O-O {[%clk
0:02:47.5]} 8... Bg7 {[%clk 0:02:53.6]} 9. d3 {[%clk 0:02:47.5]} 9... Be6 {[%clk
0:02:38.4]} 10. Bb5+ {[%clk 0:02:47.8]} 10... Bd7 {[%clk 0:02:34.8]} 11. Bc4
{[%clk 0:02:47.4]} 11... Ne7 {[%clk 0:02:24.7]} 12. f4 {[%clk 0:02:47.2]} 12...
f5 {[%clk 0:02:21.4]} 13. exf5 {[%clk 0:02:45.6]} 13... Nxf5 {[%clk 0:02:20.5]}
14. Nxf5 {[%clk 0:02:28.5]} 14... Bxf5 {[%clk 0:02:21.4]} 15. fxe5 {[%clk
0:02:29]} 15... dxe5 {[%clk 0:02:20.7]} 16. Rxf5 {[%clk 0:02:12]} 16... gxf5
{[%clk 0:02:17.7]} 17. Qh5+ {[%clk 0:02:12.2]} 17... Kd7 {[%clk 0:02:17.1]} 18.
Qxf5+ {[%clk 0:02:00.1]} 18... Kc7 {[%clk 0:02:06.1]} 19. Qf7+ {[%clk
0:01:59.3]} 19... Qd7 {[%clk 0:02:02.1]} 20. Qh5 {[%clk 0:01:50]} 20... Raf8
{[%clk 0:01:41.3]} 21. Bg5 {[%clk 0:01:46.3]} 21... Rf5 {[%clk 0:01:36.9]} 22.
Qh4 {[%clk 0:01:36.6]} 22... h6 {[%clk 0:01:09]} 23. Bd2 {[%clk 0:01:34.5]}
23... Rhf8 {[%clk 0:01:05.8]} 24. Qg3 {[%clk 0:01:16.7]} 24... Bf6 {[%clk
0:00:49.2]} 25. Bxh6 {[%clk 0:01:05.6]} 25... Rh8 {[%clk 0:00:45.1]} 26. Bd2
{[%clk 0:01:02.2]} 26... Bh4 {[%clk 0:00:41.2]} 27. Qg6 {[%clk 0:00:57]} 27...
Rf2 {[%clk 0:00:28]} 28. Ba5+ {[%clk 0:00:32.1]} 28... b6 {[%clk 0:00:27.9]} 29.
Bb4 {[%clk 0:00:32.7]} 29... Rf6 {[%clk 0:00:27.8]} 30. Qe4 {[%clk 0:00:28.4]}
30... Bf2+ {[%clk 0:00:27.9]} 31. Kf1 {[%clk 0:00:24.5]} 31... Be3+ {[%clk
0:00:19]} 32. Ke1 {[%clk 0:00:22.7]} 32... Qf5 {[%clk 0:00:17]} 33. Qxf5 {[%clk
0:00:10.3]} 33... Rxf5 {[%clk 0:00:17.9]} 34. c3 {[%clk 0:00:07.3]} 34... Rxh2
{[%clk 0:00:17.7]} 35. cxd4 {[%clk 0:00:06.2]} 35... exd4 {[%clk 0:00:18.6]} 36.
Kd1 {[%clk 0:00:06.4]} 36... Rxg2 {[%clk 0:00:18.3]} 37. Be1 {[%clk 0:00:06]}
37... Rf1 {[%clk 0:00:17.8]} 38. b4 {[%clk 0:00:05.1]} 38... Rd2+ {[%clk
0:00:18.2]} 39. Kc1 {[%clk 0:00:05.1]} 39... Rxe1# {[%clk 0:00:19.1]} 0-1

[Event "Early-Titled-Tuesday-Blitz-April-23-2024"]
[Site "Chess.com"]
[Date "2024.04.23"]
[Round "8"]
[White "mbojan"]
[Black "EddieMarsalla"]
[Result "1-0"]
[WhiteElo "2927"]
[BlackElo "2665"]
[TimeControl "180+1"]
[EndTime "9:32:03 PDT"]
[Termination "mbojan won by resignation"]

1. a3 {[%clk 0:03:00.9]} 1... d5 {[%clk 0:02:59.5]} 2. h3 {[%clk 0:03:00.4]}
2... Bf5 {[%clk 0:02:59.3]} 3. g3 {[%clk 0:02:57.4]} 3... e6 {[%clk 0:02:59.2]}
4. Bg2 {[%clk 0:02:57.8]} 4... c6 {[%clk 0:02:59.6]} 5. b3 {[%clk 0:02:57.7]}
5... Nf6 {[%clk 0:03:00]} 6. Bb2 {[%clk 0:02:58.3]} 6... Nbd7 {[%clk 0:03:00.6]}
7. d3 {[%clk 0:02:59]} 7... a5 {[%clk 0:03:00.9]} 8. Nd2 {[%clk 0:02:59.4]} 8...
Bc5 {[%clk 0:03:00.4]} 9. Ngf3 {[%clk 0:02:59.3]} 9... h6 {[%clk 0:03:00.5]} 10.
c4 {[%clk 0:02:58.9]} 10... O-O {[%clk 0:03:00]} 11. O-O {[%clk 0:02:59]} 11...
Re8 {[%clk 0:02:57.9]} 12. Ne5 {[%clk 0:02:57.8]} 12... Qc7 {[%clk 0:02:49.7]}
13. Nxd7 {[%clk 0:02:50.1]} 13... Nxd7 {[%clk 0:02:50.6]} 14. Kh2 {[%clk
0:02:41.5]} 14... Rad8 {[%clk 0:02:42.7]} 15. Rc1 {[%clk 0:02:40.4]} 15... Qb6
{[%clk 0:02:41.8]} 16. Kg1 {[%clk 0:02:30.4]} 16... Bd4 {[%clk 0:02:35.9]} 17.
Bxd4 {[%clk 0:02:25.6]} 17... Qxd4 {[%clk 0:02:36.8]} 18. Qc2 {[%clk 0:02:25.6]}
18... Nf6 {[%clk 0:02:31.6]} 19. Qc3 {[%clk 0:02:23.8]} 19... Qxc3 {[%clk
0:02:25.8]} 20. Rxc3 {[%clk 0:02:24.7]} 20... d4 {[%clk 0:02:26.4]} 21. Rc2
{[%clk 0:02:21.4]} 21... e5 {[%clk 0:02:26.7]} 22. Rd1 {[%clk 0:02:08.9]} 22...
e4 {[%clk 0:02:04.3]} 23. dxe4 {[%clk 0:02:07.9]} 23... Nxe4 {[%clk 0:02:04.6]}
24. Nxe4 {[%clk 0:02:07.5]} 24... Bxe4 {[%clk 0:02:05.5]} 25. Rcd2 {[%clk
0:02:08]} 25... Bxg2 {[%clk 0:01:43.2]} 26. Kxg2 {[%clk 0:02:08.9]} 26... Rb8
{[%clk 0:01:38.7]} 27. Rxd4 {[%clk 0:01:56.5]} 27... Rxe2 {[%clk 0:01:38.2]} 28.
Rd8+ {[%clk 0:01:56.9]} 28... Rxd8 {[%clk 0:01:21.9]} 29. Rxd8+ {[%clk
0:01:57.8]} 29... Kh7 {[%clk 0:01:22.5]} 30. Rd7 {[%clk 0:01:54.5]} 30... b5
{[%clk 0:01:20.1]} 31. cxb5 {[%clk 0:01:29.9]} 31... cxb5 {[%clk 0:01:21]} 32.
Rxf7 {[%clk 0:01:28.9]} 32... Rb2 {[%clk 0:01:16.6]} 33. Rf3 {[%clk 0:01:09.2]}
33... Ra2 {[%clk 0:01:13.5]} 34. b4 {[%clk 0:01:08.9]} 34... a4 {[%clk 0:01:04]}
35. h4 {[%clk 0:00:59.1]} 35... Rb2 {[%clk 0:00:59.6]} 36. Kh3 {[%clk
0:00:54.2]} 36... Rb3 {[%clk 0:00:57.5]} 37. Kg4 {[%clk 0:00:51.9]} 37... Kg6
{[%clk 0:00:14.7]} 38. h5+ {[%clk 0:00:51.7]} 38... Kh7 {[%clk 0:00:15.1]} 39.
Kf4 {[%clk 0:00:52.6]} 39... g6 {[%clk 0:00:14.4]} 40. hxg6+ {[%clk 0:00:51.1]}
40... Kxg6 {[%clk 0:00:15.3]} 41. Ke4 {[%clk 0:00:51.8]} 41... Rb2 {[%clk
0:00:14.8]} 42. Kd4 {[%clk 0:00:48.6]} 42... Kg5 {[%clk 0:00:13.6]} 43. Kc5
{[%clk 0:00:44.2]} 43... Rb3 {[%clk 0:00:13.9]} 44. Re3 {[%clk 0:00:27.8]} 44...
Rxe3 {[%clk 0:00:13.9]} 45. fxe3 {[%clk 0:00:28.7]} 45... Kg4 {[%clk 0:00:14.8]}
46. Kxb5 {[%clk 0:00:29.4]} 46... Kxg3 {[%clk 0:00:15.3]} 47. Kxa4 {[%clk
0:00:30.2]} 47... h5 {[%clk 0:00:16.2]} 48. b5 {[%clk 0:00:30.8]} 48... h4
{[%clk 0:00:17.1]} 49. b6 {[%clk 0:00:29.5]} 49... h3 {[%clk 0:00:18]} 50. b7
{[%clk 0:00:30.2]} 50... h2 {[%clk 0:00:18.6]} 51. b8=Q+ {[%clk 0:00:30.9]} 1-0

[Event "Early-Titled-Tuesday-Blitz-April-23-2024"]
[Site "Chess.com"]
[Date "2024.04.23"]
[Round "8"]
[White "Kobalia"]
[Black "hakanazeri2"]
[Result "0-1"]
[WhiteElo "2776"]
[BlackElo "2555"]
[TimeControl "180+1"]
[EndTime "9:32:03 PDT"]
[Termination "hakanazeri2 won on time"]

1. d4 {[%clk 0:03:00.9]} 1... Nf6 {[%clk 0:02:57.7]} 2. Nf3 {[%clk 0:03:01]}
2... d5 {[%clk 0:02:57.2]} 3. Bf4 {[%clk 0:03:01.1]} 3... c5 {[%clk 0:02:57.5]}
4. e3 {[%clk 0:03:01.5]} 4... Nc6 {[%clk 0:02:58]} 5. c3 {[%clk 0:03:01.5]} 5...
Qb6 {[%clk 0:02:57.7]} 6. Qb3 {[%clk 0:03:01.4]} 6... c4 {[%clk 0:02:55]} 7. Qc2
{[%clk 0:02:51.5]} 7... Bf5 {[%clk 0:02:53.5]} 8. Qc1 {[%clk 0:02:51.6]} 8... e6
{[%clk 0:02:49.5]} 9. Nh4 {[%clk 0:02:51.5]} 9... Be4 {[%clk 0:02:36.7]} 10. Nd2
{[%clk 0:02:50.9]} 10... Be7 {[%clk 0:02:33.5]} 11. Nxe4 {[%clk 0:02:42]} 11...
Nxe4 {[%clk 0:02:34.4]} 12. Nf3 {[%clk 0:02:40.2]} 12... g5 {[%clk 0:02:33.9]}
13. Be5 {[%clk 0:02:32.9]} 13... f6 {[%clk 0:02:32.1]} 14. Bg3 {[%clk
0:02:32.9]} 14... h5 {[%clk 0:02:31.8]} 15. h4 {[%clk 0:02:32.7]} 15... g4
{[%clk 0:02:29.8]} 16. Ng1 {[%clk 0:02:32]} 16... Nxg3 {[%clk 0:02:06.6]} 17.
fxg3 {[%clk 0:02:32.9]} 17... Bd6 {[%clk 0:02:07.1]} 18. Ne2 {[%clk 0:02:24.5]}
18... Ne7 {[%clk 0:02:07.3]} 19. Nf4 {[%clk 0:02:22.2]} 19... Nf5 {[%clk
0:02:06.9]} 20. Kf2 {[%clk 0:02:19.2]} 20... Bxf4 {[%clk 0:01:50.6]} 21. gxf4
{[%clk 0:02:10.1]} 21... g3+ {[%clk 0:01:40.3]} 22. Ke1 {[%clk 0:02:08.6]} 22...
e5 {[%clk 0:01:37.6]} 23. Be2 {[%clk 0:02:06.8]} 23... O-O-O {[%clk 0:01:30.8]}
24. fxe5 {[%clk 0:01:22.9]} 24... fxe5 {[%clk 0:01:25.9]} 25. Qd2 {[%clk
0:01:14.1]} 25... Qh6 {[%clk 0:01:06.2]} 26. dxe5 {[%clk 0:00:54.6]} 26... Nxe3
{[%clk 0:01:05.8]} 27. Bxh5 {[%clk 0:00:51.9]} 27... d4 {[%clk 0:00:39.6]} 28.
cxd4 {[%clk 0:00:44.2]} 28... Rxd4 {[%clk 0:00:39.4]} 29. Qe2 {[%clk 0:00:44.5]}
29... Re4 {[%clk 0:00:34.2]} 30. Qf3 {[%clk 0:00:22.9]} 30... Nc2+ {[%clk
0:00:16.7]} 31. Kd1 {[%clk 0:00:22.8]} 31... Nxa1 {[%clk 0:00:10.8]} 32. Qxe4
{[%clk 0:00:18.7]} 32... Rd8+ {[%clk 0:00:10.5]} 33. Ke2 {[%clk 0:00:16.4]}
33... Qxh5+ {[%clk 0:00:08.3]} 0-1